bitfinex-derivatives/quotes_BTCF0:USTF0_20260113
["timestamp","ask_amount","ask_price","bid_price","bid_amount"]
[1768322366878,0.0001601,93675.0,93654.0,0.19163891]
[1768322367076,0.0001601,93675.0,93654.0,0.24163891]
[1768322367477,0.09186941,93675.0,93654.0,0.05]
[1768322367682,0.09170931,93674.0,93654.0,0.04528524]
[1768322368783,0.0001601,93675.0,93654.0,0.14067469]
[1768322368987,0.0001601,93675.0,93654.0,0.06]
[1768322372890,0.0001601,93675.0,93654.0,0.25163891]
[1768322373081,0.0962,93674.0,93658.0,0.19163891]
[1768322373392,0.0962,93677.0,93660.0,0.19163891]
[1768322373688,0.0962,93677.0,93660.0,0.25163891]
[1768322374586,0.08410091,93687.0,93662.0,0.09624946]
[1768322374791,0.0962,93686.0,93662.0,0.25163891]
[1768322375381,0.0962,93686.0,93663.0,0.09701332]
[1768322375582,0.09170931,93688.0,93663.0,0.15701332]
[1768322375892,0.0962,93687.0,93663.0,0.15701332]
[1768322376587,0.18288903,93687.0,93663.0,0.15701332]
[1768322376981,0.09525459,93683.0,93644.0,0.09]
[1768322377192,0.09525459,93683.0,93644.0,0.03]
[1768322377379,0.09525459,93672.0,93638.0,0.18980258]
[1768322377578,0.09525459,93670.0,93640.0,0.09278926]
[1768322377792,0.09525459,93670.0,93640.0,0.15278926]
[1768322378194,0.0962,93669.0,93640.0,0.15278926]
[1768322378991,0.09525459,93668.0,93640.0,0.15278926]
[1768322379187,0.09525459,93668.0,93640.0,0.09278926]
[1768322379397,0.0962,93667.0,93644.0,0.09278926]
[1768322379586,0.0962,93667.0,93644.0,0.15278926]
[1768322380393,0.0962,93666.0,93637.0,0.09701332]
[1768322380588,0.0962,93666.0,93639.0,0.09701332]
[1768322380788,0.0962,93666.0,93641.0,0.09278926]
[1768322380984,0.0962,93666.0,93641.0,0.14278926]
[1768322381290,0.05951102,93670.0,93644.0,0.09701332]
[1768322381491,0.0962,93669.0,93646.0,0.09278926]
[1768322383688,0.09525459,93672.0,93646.0,0.09278926]
[1768322383884,0.97736,93671.0,93646.0,0.09278926]
[1768322384495,0.97736,93671.0,93647.0,0.09278926]
[1768322385003,0.09525459,93670.0,93640.0,0.08744698]
[1768322385188,0.09525459,93670.0,93640.0,0.14701332]
[1768322385388,0.09525459,93670.0,93641.0,0.09701332]
[1768322385598,0.09525459,93670.0,93641.0,0.14701332]
[1768322386603,0.09525459,93668.0,93641.0,0.05]
[1768322387100,0.09525459,93668.0,93642.0,0.09278926]
[1768322387302,0.09525459,93668.0,93642.0,0.14278926]
[1768322387502,0.09525459,93668.0,93643.0,0.18980258]
[1768322387700,0.09525459,93668.0,93643.0,0.24980258]
[1768322389500,0.09525459,93668.0,93645.0,0.09278926]
[1768322389707,0.09525459,93668.0,93645.0,0.10278926]
[1768322390507,0.09525459,93668.0,93645.0,0.01]
[1768322390703,0.09525459,93668.0,93645.0,0.10278926]
[1768322395705,0.09525459,93668.0,93646.0,0.09278926]
[1768322396004,0.97736,93671.0,93648.0,0.09701332]
[1768322396200,0.97736,93671.0,93649.0,0.09278926]
[1768322396394,0.97736,93671.0,93649.0,0.11278926]
[1768322396597,0.14249755,93670.0,93649.0,0.11278926]
[1768322396798,1.07297459,93669.0,93649.0,0.02]
[1768322397813,0.09525459,93668.0,93649.0,0.02]
[1768322400720,0.9778,93667.0,93652.0,0.09278926]
[1768322400914,0.9778,93667.0,93644.0,0.09278926]
[1768322401115,0.9778,93667.0,93644.0,0.15278926]
[1768322401318,0.09525459,93666.0,93644.0,0.06]
[1768322401624,0.09525459,93664.0,93644.0,0.06]
[1768322402119,1.07305459,93667.0,93645.0,0.09278926]
[1768322402324,1.07305459,93667.0,93645.0,0.15278926]
[1768322402713,0.09525459,93666.0,93645.0,0.15278926]
[1768322402915,0.09525459,93666.0,93645.0,0.06]
[1768322403218,0.09525459,93659.0,93645.0,0.06]
[1768322403619,0.09525459,93647.0,93623.0,0.09278926]
[1768322403813,0.10219615,93639.0,93614.0,0.09701332]
[1768322404015,0.0962,93638.0,93618.0,0.18980258]
[1768322404228,0.09525459,93653.0,93629.0,0.18980258]
[1768322404630,0.0001602,93637.0,93616.0,0.18980258]
[1768322404823,0.0962,93636.0,93621.0,0.09085989]
[1768322405024,0.0962,93636.0,93621.0,0.23492047]
[1768322405225,0.0962,93636.0,93622.0,0.18492047]
[1768322405523,0.0962,93636.0,93622.0,0.06]
[1768322405730,0.0962,93636.0,93615.0,0.09406058]
[1768322405921,0.0962,93636.0,93616.0,0.18492047]
[1768322406123,0.0962,93636.0,93616.0,0.24492047]
[1768322407435,0.09631452,93635.0,93616.0,0.06]
[1768322407624,0.09631452,93631.0,93616.0,0.06]
[1768322407828,0.14249755,93630.0,93613.0,0.00534114]
[1768322408033,0.14249755,93630.0,93613.0,0.05534114]
[1768322408427,0.09631452,93631.0,93613.0,0.05534114]
[1768322408829,0.10761197,93631.0,93613.0,0.00534114]
[1768322409035,0.23881207,93630.0,93613.0,0.00534114]
[1768322409235,0.09631452,93630.0,93613.0,0.00534114]
[1768322409438,0.23881207,93630.0,93613.0,0.00534114]
[1768322409638,0.09631452,93630.0,93613.0,0.00534114]
[1768322409837,0.09631452,93629.0,93613.0,0.00534114]
[1768322410036,0.09631452,93622.0,93599.0,0.09873508]
[1768322410236,0.0962,93621.0,93599.0,0.25115988]
[1768322410431,0.0962,93621.0,93601.0,0.09873508]
[1768322410633,0.0962,93621.0,93601.0,0.19115988]
[1768322410833,0.0962,93621.0,93602.0,0.09873508]
[1768322411343,0.0962,93621.0,93605.0,0.0924248]
[1768322411538,0.0962,93621.0,93600.0,0.09873508]
[1768322411932,0.0962,93621.0,93580.0,0.19115988]
[1768322411933,0.10906437,93605.0,93580.0,0.19115988]
[1768322412134,0.14249755,93590.0,93573.0,0.09873508]
[1768322412340,0.0962,93589.0,93569.0,0.0924248]
[1768322412645,0.0962,93588.0,93569.0,0.0924248]
[1768322412845,0.0962,93587.0,93569.0,0.19115988]
[1768322413039,0.0962,93587.0,93570.0,0.0924248]
[1768322413239,0.0962,93587.0,93570.0,0.19115988]
[1768322413441,0.14249755,93580.0,93558.0,0.0924248]
[1768322413937,0.14249755,93580.0,93559.0,0.0924248]
[1768322414146,0.14249755,93580.0,93560.0,0.19115988]
[1768322414340,0.88204,93583.0,93571.0,0.0924248]
[1768322414545,0.0962,93582.0,93571.0,0.0924248]
[1768322414748,0.00016029,93588.0,93572.0,0.19115988]
[1768322414943,0.00016029,93588.0,93573.0,0.19115988]
[1768322415139,0.0962,93587.0,93573.0,0.19115988]
[1768322416248,0.0962,93587.0,93566.0,0.19115988]
[1768322416644,0.0962,93587.0,93567.0,0.0924248]
[1768322416940,0.0962,93587.0,93567.0,0.18689471]
[1768322417146,0.0193564,93578.0,93554.0,9.074e-05]
[1768322417347,0.14249755,93570.0,93554.0,9.074e-05]
[1768322417646,0.09624,93571.0,93562.0,0.19322455]
[1768322417848,0.09624,93571.0,93555.0,0.09875464]
[1768322418840,0.14258829,93570.0,93548.0,0.00794994]
[1768322419044,9.074e-05,93570.0,93548.0,0.10241985]
[1768322419443,9.074e-05,93570.0,93548.0,0.09446991]
[1768322419646,0.00016029,93568.0,93548.0,0.09446991]
[1768322419849,9.074e-05,93567.0,93548.0,0.09446991]
[1768322421452,0.00016029,93568.0,93549.0,0.19322455]
[1768322421657,0.00016029,93568.0,93519.0,0.89232]
[1768322421658,0.09624,93567.0,93551.0,0.09446991]
[1768322421954,0.09624,93567.0,93544.0,0.09446991]
[1768322422152,0.09624,93567.0,93546.0,0.09446991]
[1768322422450,0.09624,93567.0,93549.0,0.09446991]
[1768322422866,0.09624,93567.0,93529.0,0.09446991]
[1768322422867,0.09091386,93556.0,93529.0,0.09446991]
[1768322423057,0.09624,93555.0,93529.0,0.19322455]
[1768322423358,7.515e-05,93554.0,93531.0,0.19322455]
[1768322423559,0.14249755,93550.0,93532.0,0.09446991]
[1768322423750,0.14249755,93550.0,93526.0,0.09446991]
[1768322423948,0.14249755,93550.0,93527.0,0.09446991]
[1768322424151,0.0843051,93555.0,93531.0,0.09446991]
[1768322424152,0.1436147,93555.0,93531.0,0.09446991]
[1768322424353,1.5,93562.0,93553.0,0.09446991]
[1768322424354,0.05800238,93562.0,93553.0,0.09446991]
[1768322424554,0.09091386,93580.0,93553.0,0.19322455]
[1768322424750,0.09624,93579.0,93557.0,0.19322455]
[1768322424954,0.00016029,93567.0,93557.0,0.19322455]
[1768322425255,0.09624,93566.0,93542.0,0.19322455]
[1768322425460,0.09624,93566.0,93545.0,0.09875464]
[1768322425660,0.09624,93566.0,93529.0,0.09624]
[1768322425661,0.00016029,93567.0,93548.0,0.09446991]
[1768322425853,0.09628,93566.0,93550.0,0.09446991]
[1768322426053,0.09628,93566.0,93550.0,0.19322455]
[1768322426851,0.00016029,93567.0,93550.0,0.19322455]
[1768322427052,0.00016029,93567.0,93552.0,0.19322455]
[1768322427760,0.00016029,93567.0,93546.0,0.09446991]
[1768322428561,0.00016029,93567.0,93547.0,0.19322455]
[1768322429860,0.14249755,93560.0,93541.0,0.09628]
[1768322430063,0.14249755,93560.0,93542.0,0.09446991]
[1768322430374,0.09628,93563.0,93544.0,0.09875464]
[1768322430658,0.09628,93563.0,93546.0,0.09875464]
[1768322430860,0.09628,93563.0,93547.0,0.09446991]
[1768322431557,0.09628,93563.0,93541.0,0.09628]
[1768322432358,0.00016029,93567.0,93541.0,0.19322455]
[1768322432555,0.09628,93566.0,93545.0,0.19322455]
[1768322433354,0.09628,93565.0,93549.0,0.19322455]
[1768322433857,0.00016029,93567.0,93551.0,0.19322455]
[1768322434066,0.09628,93571.0,93555.0,0.19322455]
[1768322434561,0.09628,93571.0,93535.0,0.19322455]
[1768322434757,0.09628,93571.0,93546.0,0.19882949]
[1768322434953,0.88316,93575.0,93549.0,0.09925448]
[1768322435152,0.88316,93575.0,93549.0,0.19882949]
[1768322435153,0.09628,93570.0,93549.0,0.19882949]
[1768322435353,0.09628,93569.0,93553.0,0.09957501]
[1768322435565,0.09628,93569.0,93554.0,0.09925448]
[1768322436654,0.09628,93569.0,93547.0,0.09925448]
[1768322437557,0.09859224,93568.0,93538.0,0.09925448]
[1768322437757,0.00235157,93555.0,93539.0,0.09957501]
[1768322437959,0.09859224,93568.0,93549.0,0.00016029]
[1768322438466,0.09628,93569.0,93549.0,0.00016029]
[1768322442269,0.09859224,93568.0,93549.0,0.00016029]
[1768322445177,0.14249755,93560.0,93549.0,0.00016029]
[1768322445375,0.09859224,93567.0,93549.0,0.00016029]
[1768322445872,0.19004904,93567.0,93549.0,0.00016029]
[1768322446072,0.09628,93569.0,93549.0,0.00016029]
[1768322446073,0.19004904,93564.0,93549.0,0.00016029]
[1768322446273,0.19004904,93563.0,93549.0,0.00016029]
[1768322446473,0.09859224,93562.0,93549.0,0.00016029]
[1768322449873,0.19004904,93562.0,93549.0,0.00016029]
[1768322450068,0.09859224,93561.0,93549.0,0.00016029]
[1768322451073,0.05914389,93562.0,93549.0,0.00016029]
[1768322451271,0.09859224,93567.0,93549.0,0.00016029]
[1768322451869,0.15593291,93567.0,93549.0,0.00016029]
[1768322452883,0.09859224,93565.0,93549.0,0.00016029]
[1768322453292,0.97988,93566.0,93549.0,0.00016029]
[1768322453293,0.19004904,93564.0,93549.0,0.00016029]
[1768322453588,0.09859224,93555.0,93534.0,0.09628]
[1768322453789,0.09628,93554.0,93529.0,0.09925448]
[1768322454182,0.09628,93554.0,93529.0,0.19882949]
[1768322454386,0.19487224,93554.0,93529.0,0.19882949]
[1768322454782,0.09859224,93553.0,93529.0,0.19882949]
[1768322455683,0.09628,93554.0,93532.0,0.09957501]
[1768322455993,0.09628,93553.0,93535.0,0.09925448]
[1768322456185,0.09628,93552.0,93535.0,0.09925448]
[1768322457192,0.09859224,93561.0,93536.0,0.09957501]
[1768322457393,0.09859224,93561.0,93527.0,0.09628]
[1768322457394,0.09628,93560.0,93540.0,0.09957501]
[1768322457986,0.00016029,93566.0,93544.0,0.19882949]
[1768322458291,0.09859224,93580.0,93558.0,0.09925448]
[1768322458484,0.98004,93579.0,93560.0,0.09925448]
[1768322458685,0.98004,93579.0,93561.0,0.09957501]
[1768322458881,0.98004,93579.0,93562.0,0.09925448]
[1768322459099,0.00235082,93585.0,93565.0,0.09925448]
[1768322459399,0.15778891,93585.0,93566.0,0.19882949]
[1768322459687,0.06150891,93585.0,93568.0,0.09925448]
[1768322460785,0.0914568,93583.0,93561.0,0.00016029]
[1768322460978,0.0914568,93581.0,93561.0,0.00016029]
[1768322461178,0.09859224,93582.0,93561.0,0.00016029]
[1768322461394,0.06150891,93585.0,93562.0,0.19882949]
[1768322462094,0.16010115,93585.0,93562.0,0.19882949]
[1768322462486,0.19004904,93583.0,93561.0,0.00016029]
[1768322462796,0.09859224,93582.0,93561.0,0.00016029]
[1768322464293,0.19004904,93581.0,93547.0,0.09925448]
[1768322464500,0.09859224,93573.0,93547.0,0.09925448]
[1768322464696,0.09628,93572.0,93547.0,0.09925448]
[1768322465884,0.0994632,93567.0,93544.0,0.09628]
[1768322467190,0.0994632,93567.0,93544.0,0.18640812]
[1768322467391,0.09628,93572.0,93546.0,0.18209094]
[1768322468291,0.00016029,93568.0,93546.0,0.18209094]
[1768322468805,0.09962349,93568.0,93540.0,0.09012812]
[1768322469101,0.09962349,93568.0,93543.0,0.09196282]
[1768322469601,0.09962349,93568.0,93543.0,0.18209094]
[1768322470199,0.09962349,93568.0,93544.0,0.09012812]
[1768322470701,0.00016029,93568.0,93546.0,0.09196282]
[1768322470896,0.00016029,93568.0,93547.0,0.09012812]
[1768322471201,0.00016029,93568.0,93537.0,0.09628]
[1768322471202,0.09962349,93568.0,93539.0,0.18209094]
[1768322471398,0.09962349,93568.0,93542.0,0.09012812]
[1768322472702,0.09962349,93568.0,93525.0,0.1556]
[1768322472703,0.0994632,93561.0,93536.0,0.09012812]
[1768322473396,0.09628,93560.0,93536.0,0.09012812]
[1768322473894,0.0994632,93559.0,93536.0,0.09012812]
[1768322474094,0.0994632,93559.0,93535.0,0.09628]
[1768322474095,0.0994632,93558.0,93535.0,0.09628]
[1768322474298,0.0994632,93558.0,93530.0,0.09012812]
[1768322474299,0.0994632,93555.0,93530.0,0.09012812]
[1768322474491,0.0994632,93554.0,93530.0,0.09012812]
[1768322474688,0.0994632,93554.0,93528.0,0.09628]
[1768322474689,0.0994632,93551.0,93528.0,0.09628]
[1768322474892,0.18967855,93549.0,93528.0,0.09628]
[1768322475093,0.05756503,93568.0,93520.0,0.09196282]
[1768322475094,0.0994632,93546.0,93521.0,0.09012812]
[1768322475293,0.0994632,93546.0,93522.0,0.09012812]
[1768322475503,0.0994632,93546.0,93523.0,0.09012812]
[1768322476092,0.0994632,93546.0,93522.0,0.09196282]
[1768322476292,0.0994632,93546.0,93523.0,0.09284957]
[1768322476496,0.0994632,93546.0,93524.0,0.09284957]
[1768322476706,0.09309255,93545.0,93518.0,0.09284957]
[1768322476896,0.09309255,93544.0,93518.0,0.09284957]
[1768322477092,0.18408166,93544.0,93518.0,0.09284957]
[1768322477294,0.09628,93547.0,93514.0,0.09110926]
[1768322477295,0.09309255,93542.0,93514.0,0.09110926]
[1768322477494,0.09309255,93540.0,93514.0,0.18395883]
[1768322477800,0.09309255,93538.0,93514.0,0.18395883]
[1768322478001,0.09098911,93537.0,93513.0,0.10097917]
[1768322478196,0.09309255,93535.0,93513.0,0.10097917]
[1768322479295,0.09309255,93535.0,93513.0,0.00469917]
[1768322480298,0.05907944,93546.0,93523.0,0.09110926]
[1768322480503,0.00016029,93548.0,93526.0,0.09284957]
[1768322480798,0.09309255,93561.0,93531.0,0.09284957]
[1768322480995,0.05746517,93556.0,93536.0,0.09110926]
[1768322481192,0.09628,93564.0,93548.0,0.09284957]
[1768322481396,0.08414531,93571.0,93549.0,0.18395883]
[1768322481600,0.09628,93570.0,93550.0,0.09284957]
[1768322481806,0.09628,93570.0,93549.0,0.09110926]
[1768322482105,0.18937255,93570.0,93543.0,0.09284957]
[1768322482496,0.09309255,93569.0,93541.0,0.09110926]
[1768322482701,0.09309255,93568.0,93541.0,0.09110926]
[1768322483206,0.09309255,93568.0,93545.0,0.00016038]
[1768322485309,0.09309255,93567.0,93545.0,0.00016038]
[1768322485507,0.18408166,93567.0,93545.0,0.00016038]
[1768322485810,0.18408166,93565.0,93545.0,0.00016038]
[1768322486210,0.09309255,93564.0,93545.0,0.00016038]
[1768322489510,0.09628,93563.0,93545.0,0.00016038]
[1768322491301,0.18937255,93563.0,93545.0,0.00016038]
[1768322492311,0.09309255,93562.0,93545.0,0.00016038]
[1768322493806,0.18408166,93562.0,93545.0,0.00016038]
[1768322494613,0.09309255,93561.0,93545.0,0.00016038]
[1768322495308,0.18675617,93570.0,93545.0,0.00016038]
[1768322495510,0.09628,93570.0,93553.0,0.18156728]
[1768322495813,0.09628,93570.0,93555.0,0.09020833]
[1768322496016,0.09628,93570.0,93547.0,0.09135895]
[1768322496311,0.09628,93570.0,93549.0,0.09020833]
[1768322496908,0.09628,93570.0,93548.0,0.09135895]
[1768322497112,0.18852113,93570.0,93548.0,0.09135895]
[1768322497709,0.00534342,93573.0,93549.0,0.18156728]
[1768322497911,0.09628,93572.0,93549.0,0.18156728]
[1768322499119,0.18852113,93572.0,93549.0,0.18156728]
[1768322503420,0.18852113,93572.0,93550.0,0.09020833]
[1768322503805,0.09224113,93597.0,93560.0,0.18156728]
[1768322504005,0.09628,93589.0,93564.0,0.18156728]
[1768322504206,0.09628,93593.0,93573.0,0.09135895]
[1768322504410,3.0,93600.0,93576.0,0.09020833]
[1768322504610,0.09628,93599.0,93578.0,0.09020833]
[1768322505715,0.09628,93599.0,93568.0,0.09135895]
[1768322505716,0.09451504,93596.0,93568.0,0.09135895]
[1768322505923,0.09224113,93595.0,93568.0,0.18156728]
[1768322506314,0.09224113,93595.0,93569.0,0.09020833]
[1768322506714,0.00534228,93593.0,93569.0,0.18648833]
[1768322506913,0.00534228,93593.0,93570.0,0.09020833]
[1768322508922,0.00534228,93593.0,93570.0,0.18156728]
[1768322509133,0.00534228,93593.0,93572.0,0.18156728]
[1768322509318,0.00534228,93593.0,93573.0,0.18156728]
[1768322509521,3.0,93600.0,93581.0,0.18156728]
[1768322509710,2.03794198,93600.0,93586.0,0.010691]
[1768322509915,2.03794198,93600.0,93581.0,0.09628]
[1768322510414,2.03794198,93600.0,93582.0,0.010692]
[1768322510617,2.03794198,93600.0,93581.0,0.09628]
[1768322511517,2.13018311,93600.0,93581.0,0.09628]
[1768322511827,0.09224113,93599.0,93581.0,0.09628]
[1768322512322,2.03794198,93600.0,93584.0,0.010691]
[1768322513523,2.03794198,93600.0,93582.0,0.010692]
[1768322513721,2.03794198,93600.0,93582.0,0.070692]
[1768322514219,2.03794198,93600.0,93582.0,0.06]
[1768322514726,2.03794198,93600.0,93586.0,0.010691]
[1768322514919,0.99502552,93600.0,93590.0,0.14263425]
[1768322515112,0.44688052,93600.0,93595.0,0.01069]
[1768322515331,0.00234114,93613.0,93596.0,0.09628]
[1768322515530,0.00234114,93613.0,93600.0,0.01069]
[1768322515720,0.00234114,93613.0,93600.0,0.14263425]
[1768322516027,0.09224113,93628.0,93600.0,0.14263425]
[1768322516028,0.010686,93628.0,93605.0,0.010689]
[1768322516230,0.010686,93628.0,93605.0,0.070689]
[1768322516427,0.010686,93632.0,93610.0,0.15332225]
[1768322516618,0.010687,93625.0,93611.0,0.09624]
[1768322516821,0.010686,93629.0,93611.0,0.09624]
[1768322517420,0.010686,93630.0,93611.0,0.14624]
[1768322517733,0.09224113,93632.0,93611.0,0.09624]
[1768322518023,0.10292713,93632.0,93611.0,0.09624]
[1768322518231,0.09224113,93632.0,93611.0,0.15624]
[1768322518533,0.10292713,93632.0,93611.0,0.15624]
[1768322519119,0.010686,93629.0,93611.0,0.15624]
[1768322520331,0.09224113,93632.0,93611.0,0.15624]
[1768322520535,0.10292713,93632.0,93611.0,0.15624]
[1768322520826,0.00534,93633.0,93613.0,0.00094678]
[1768322521132,0.010687,93628.0,93613.0,0.00094678]
[1768322521317,0.010686,93632.0,93613.0,0.00094678]
[1768322521919,0.00534,93633.0,93613.0,0.00094678]
[1768322522134,0.010688,93614.0,93600.0,0.00094678]
[1768322522327,0.09224113,93624.0,93601.0,0.09624]
[1768322522524,0.010687,93620.0,93601.0,0.09624]
[1768322522725,0.010688,93618.0,93601.0,0.09624]
[1768322522926,0.010688,93619.0,93602.0,0.09624]
[1768322523225,0.09224113,93624.0,93602.0,0.15624]
[1768322523425,0.10292813,93624.0,93602.0,0.15624]
[1768322523627,0.010687,93620.0,93602.0,0.15624]
[1768322524030,0.09224113,93624.0,93602.0,0.15624]
[1768322524238,0.09224113,93631.0,93604.0,0.0006744]
[1768322524537,0.09224113,93631.0,93608.0,0.00175519]
[1768322524738,0.09224113,93631.0,93609.0,0.01207568]
[1768322524935,0.00534,93633.0,93613.0,0.00294233]
[1768322525125,0.00239767,93633.0,93620.0,0.14263425]
[1768322525437,0.00239767,93633.0,93621.0,0.010687]
[1768322525626,0.00239767,93633.0,93621.0,0.070687]
[1768322526026,0.00239767,93633.0,93621.0,0.06]
[1768322526338,0.00239767,93633.0,93622.0,0.09624]
[1768322526635,0.00239767,93633.0,93622.0,0.14624]
[1768322528636,0.00239767,93633.0,93622.0,0.05]
[1768322528833,0.00239767,93633.0,93623.0,0.09624]
[1768322529034,0.00239767,93633.0,93623.0,0.14624]
[1768322530137,0.00239767,93633.0,93624.0,0.00305995]
[1768322530325,0.00239767,93633.0,93624.0,0.05305995]
[1768322530632,0.00239767,93633.0,93624.0,0.00305995]
[1768322531029,0.00239767,93633.0,93623.0,0.09624]
[1768322531228,0.00239767,93633.0,93623.0,0.14624]
[1768322531940,0.010684,93654.0,93633.0,0.01344071]
[1768322532124,0.010684,93650.0,93633.0,0.00275471]
[1768322532326,0.010684,93646.0,93634.0,0.0962]
[1768322532532,0.09999544,93646.0,93634.0,0.0962]
[1768322532837,0.11067944,93646.0,93634.0,0.0962]
[1768322533234,0.010685,93643.0,93626.0,0.00275471]
[1768322533437,0.09999544,93646.0,93632.0,0.0962]
[1768322534233,0.010685,93644.0,93632.0,0.0962]
[1768322534624,0.0962,93657.0,93632.0,0.0962]
[1768322534625,0.09999544,93657.0,93635.0,0.00277988]
[1768322534839,0.09999544,93657.0,93638.0,0.00277988]
[1768322535137,0.05785266,93671.0,93638.0,0.00277988]
[1768322535138,0.09999544,93669.0,93650.0,0.00277988]
[1768322535333,0.09999544,93669.0,93651.0,0.0962]
[1768322535632,0.09999544,93669.0,93651.0,0.1562]
[1768322536034,0.010681,93674.0,93652.0,0.00277988]
[1768322536243,0.11022128,93674.0,93652.0,0.06]
[1768322536436,0.11022128,93672.0,93652.0,0.06]
[1768322536945,0.010682,93670.0,93652.0,0.06]
[1768322537240,0.010682,93666.0,93652.0,0.06]
[1768322537441,0.11022228,93671.0,93652.0,0.06]
[1768322538040,0.09954028,93671.0,93653.0,0.01032342]
[1768322538237,0.09954028,93681.0,93660.0,0.01032342]
[1768322538542,0.09656896,93688.0,93664.0,0.01032342]
[1768322538543,0.09954028,93688.0,93664.0,0.01032342]
[1768322538839,0.09954028,93688.0,93666.0,0.01505325]
[1768322539030,0.09954028,93688.0,93666.0,0.06505325]
[1768322539940,0.09954028,93688.0,93668.0,0.01505325]
[1768322540141,0.01068,93687.0,93669.0,0.01505325]
[1768322540327,0.09954028,93688.0,93669.0,0.05]
[1768322540526,0.01068,93684.0,93669.0,0.06]
[1768322540726,0.01068,93687.0,93669.0,0.06]
[1768322541328,0.09954028,93700.0,93670.0,0.01488705]
[1768322541636,0.11021928,93696.0,93672.0,0.01488705]
[1768322542032,0.11021928,93696.0,93674.0,0.01488705]
[1768322542238,0.09954028,93696.0,93676.0,0.01488705]
[1768322542431,0.09954028,93696.0,93676.0,0.06488705]
[1768322542630,0.010679,93694.0,93676.0,0.06488705]
[1768322542842,0.11021928,93692.0,93676.0,0.05]
[1768322543034,0.09954028,93692.0,93676.0,0.05]
[1768322543342,0.010679,93691.0,93676.0,0.05]
[1768322543533,0.09954028,93692.0,93676.0,0.05]
[1768322544241,0.11021928,93692.0,93676.0,0.05]
[1768322544846,0.09954028,93692.0,93676.0,0.05]
[1768322546033,0.09954028,93699.0,93676.0,0.05]
[1768322546234,0.09954028,93699.0,93676.0,0.06502687]
[1768322546932,0.09954028,93699.0,93677.0,0.010681]
[1768322547140,0.09954028,93706.0,93681.0,0.01650678]
[1768322547442,0.09954028,93706.0,93685.0,0.01068]
[1768322547641,0.09656896,93715.0,93693.0,0.010679]
[1768322547839,0.11021728,93714.0,93690.0,0.01650678]
[1768322548038,0.11021728,93714.0,93690.0,0.07650678]
[1768322548237,0.09954028,93714.0,93692.0,0.01650678]
[1768322548542,0.09954028,93714.0,93693.0,0.01650678]
[1768322548739,0.09954028,93714.0,93693.0,0.07650678]
[1768322549244,0.09954028,93714.0,93694.0,0.01635224]
[1768322549446,0.09954028,93714.0,93694.0,0.07635224]
[1768322550045,0.09954028,93712.0,93694.0,0.06]
[1768322550946,0.11021728,93711.0,93694.0,0.06]
[1768322551242,0.010678,93707.0,93695.0,0.09616]
[1768322551543,0.09954028,93711.0,93695.0,0.14616]
[1768322552334,0.09954028,93711.0,93695.0,0.05]
[1768322552541,0.09954028,93711.0,93696.0,0.09616]
[1768322552741,0.09954028,93711.0,93696.0,0.15616]
[1768322552940,0.09954028,93717.0,93698.0,0.010678]
[1768322553244,0.09954028,93717.0,93698.0,0.06]
[1768322554344,0.09954028,93711.0,93698.0,0.06]
[1768322554534,0.11021728,93710.0,93699.0,0.09616]
[1768322554736,0.11021728,93710.0,93699.0,0.15616]
[1768322554737,0.09954028,93710.0,93699.0,0.15616]
[1768322556245,0.09684583,93717.0,93699.0,0.15616]
[1768322556447,0.09684583,93717.0,93700.0,0.02408721]
[1768322556745,0.09684583,93717.0,93700.0,0.070678]
[1768322556940,0.09684583,93717.0,93700.0,0.06]
[1768322557139,0.09684583,93713.0,93700.0,0.06]
[1768322557341,0.09684583,93711.0,93700.0,0.06]
[1768322561550,0.09684583,93711.0,93699.0,0.09616]
[1768322561751,0.09684583,93710.0,93695.0,0.00016011]
[1768322561940,0.09684583,93703.0,93696.0,0.09612]
[1768322562141,0.09684583,93703.0,93684.0,0.01068]
[1768322562342,0.09684583,93703.0,93685.0,0.98956]
[1768322562542,0.09684583,93703.0,93685.0,1.06024]
[1768322563246,0.09684583,93709.0,93692.0,0.09134072]
[1768322563451,0.00016011,93714.0,93693.0,0.09134072]
[1768322563653,0.10752283,93713.0,93693.0,0.06]
[1768322564246,0.09684583,93710.0,93690.0,0.010679]
[1768322564552,0.09684583,93710.0,93690.0,0.05]
[1768322565750,0.09684583,93704.0,93684.0,0.89348]
[1768322566052,0.00016011,93714.0,93685.0,0.09612]
[1768322566053,0.09684583,93702.0,93685.0,0.09612]
[1768322566247,0.09684583,93700.0,93685.0,0.15612]
[1768322566649,0.09684583,93700.0,93687.0,0.01068]
[1768322566844,0.09684583,93700.0,93687.0,0.06]
[1768322567049,0.09684583,93700.0,93691.0,0.010679]
[1768322567249,0.09684583,93711.0,93693.0,0.09134072]
[1768322567442,0.09684583,93711.0,93693.0,0.15134072]
[1768322568148,0.00016011,93714.0,93694.0,0.09134072]
[1768322568354,0.00016011,93714.0,93695.0,0.09134072]
[1768322568553,0.00016011,93714.0,93696.0,0.09612]
[1768322568754,0.09700594,93714.0,93696.0,0.15612]
[1768322568954,0.09700594,93714.0,93696.0,0.166799]
[1768322569843,0.09700594,93714.0,93696.0,0.15612]
[1768322570047,0.09700594,93714.0,93699.0,0.010678]
[1768322570247,0.09700594,93714.0,93699.0,0.060678]
[1768322570454,0.09700594,93714.0,93699.0,0.05]
[1768322571143,0.00016011,93714.0,93699.0,0.14134072]
[1768322571345,0.091855,93729.0,93712.0,0.010677]
[1768322571545,0.091855,93729.0,93713.0,0.09612]
[1768322571746,0.091855,93729.0,93713.0,0.166797]
[1768322572250,0.091855,93729.0,93713.0,0.15612]
[1768322572447,0.10253,93729.0,93713.0,0.15612]
[1768322572646,0.10253,93729.0,93688.0,0.01068]
[1768322572647,0.11041591,93725.0,93701.0,0.010678]
[1768322572847,0.11041591,93725.0,93706.0,0.89356]
[1768322573062,0.09974091,93725.0,93706.0,0.95356]
[1768322573356,0.09684583,93724.0,93706.0,0.95356]
[1768322573544,0.010676,93721.0,93706.0,0.95356]
[1768322573746,0.09684583,93718.0,93706.0,0.95356]
[1768322573946,0.08941358,93718.0,93706.0,0.06]
[1768322574249,0.10545816,93717.0,93702.0,0.09612]
[1768322574555,0.10545816,93717.0,93702.0,0.15612]
[1768322574750,0.010677,93715.0,93702.0,0.15612]
[1768322574953,0.11041791,93715.0,93702.0,0.15612]
[1768322575146,0.09974091,93715.0,93702.0,0.15612]
[1768322575354,0.010675,93730.0,93705.0,0.09134072]
[1768322575658,0.010676,93721.0,93705.0,0.06]
[1768322575847,0.09974091,93717.0,93697.0,0.00016011]
[1768322576155,0.09684583,93713.0,93697.0,0.06016011]
[1768322576348,0.10752283,93711.0,93697.0,0.06016011]